[Event "Titled Tuesday Blitz July 05 Early 2022"]
[White "Shimanov, Aleksandr"]
[Black "Yurovskykh, Oleksandr"]
[WhiteFideId "4198603"]
[BlackFideId "14134020"]
[WhiteElo "2605"]
[BlackElo "2292"]
[Result "1-0"]
[Round "03"]
[TimeControl "180+1"]
[Date "2022.07.05"]
[WhiteClock "0:00:06"]
[BlackClock "0:00:10"]

1. e4 {[%clk 0:03:00]}  d5 {[%clk 0:02:58]} 2. Nc3 {[%clk 0:02:55]}  d4 {[%clk 0:02:54]} 3. Nce2 {[%clk 0:02:55]}  e5 {[%clk 0:02:53]} 4. Ng3 {[%clk 0:02:55]}  Be6 {[%clk 0:02:53]} 5. b3 {[%clk 0:02:55]}  Nc6 {[%clk 0:02:36]} 6. Bb5 {[%clk 0:02:50]}  Ne7 {[%clk 0:02:33]} 7. Nf3 {[%clk 0:02:49]}  f6 {[%clk 0:02:32]} 8. O-O {[%clk 0:02:45]}  a6 {[%clk 0:02:32]} 9. Bc4 {[%clk 0:02:45]}  Bxc4 {[%clk 0:02:32]} 10. bxc4 {[%clk 0:02:46]}  d3 {[%clk 0:02:29]} 11. Rb1 {[%clk 0:02:43]}  b6 {[%clk 0:02:22]} 12. Rb3 {[%clk 0:02:35]}  dxc2 {[%clk 0:02:22]} 13. Qxc2 {[%clk 0:02:36]}  g6 {[%clk 0:02:10]} 14. Rd1 {[%clk 0:02:28]}  Bg7 {[%clk 0:02:06]} 15. Bb2 {[%clk 0:02:28]}  O-O {[%clk 0:01:59]} 16. d4 {[%clk 0:02:27]}  exd4 {[%clk 0:02:00]} 17. Nxd4 {[%clk 0:02:28]}  Nxd4 {[%clk 0:01:59]} 18. Bxd4 {[%clk 0:02:28]}  Qc8 {[%clk 0:01:59]} 19. a4 {[%clk 0:02:23]}  Nc6 {[%clk 0:01:56]} 20. Bb2 {[%clk 0:02:23]}  Qe6 {[%clk 0:01:23]} 21. Rd5 {[%clk 0:02:22]}  Ne7 {[%clk 0:01:18]} 22. Rd2 {[%clk 0:02:16]}  Rfd8 {[%clk 0:01:15]} 23. Rbd3 {[%clk 0:02:14]}  Rxd3 {[%clk 0:01:10]} 24. Qxd3 {[%clk 0:02:14]}  Nc6 {[%clk 0:01:07]} 25. Qd5 {[%clk 0:02:11]}  Qxd5 {[%clk 0:01:07]} 26. cxd5 {[%clk 0:02:12]}  Ne5 {[%clk 0:00:48]} 27. Rc2 {[%clk 0:02:08]}  Ra7 {[%clk 0:00:30]} 28. Bxe5 {[%clk 0:01:52]}  fxe5 {[%clk 0:00:28]} 29. Ne2 {[%clk 0:01:52]}  Bf8 {[%clk 0:00:28]} 30. Nc1 {[%clk 0:01:52]}  Bd6 {[%clk 0:00:23]} 31. Kf1 {[%clk 0:01:43]}  b5 {[%clk 0:00:24]} 32. a5 {[%clk 0:01:42]}  Kf7 {[%clk 0:00:22]} 33. Rc6 {[%clk 0:01:42]}  Ke7 {[%clk 0:00:20]} 34. Nb3 {[%clk 0:01:42]}  Kd7 {[%clk 0:00:21]} 35. Ke2 {[%clk 0:01:42]}  Ra8 {[%clk 0:00:21]} 36. f3 {[%clk 0:01:42]}  g5 {[%clk 0:00:22]} 37. h3 {[%clk 0:01:21]}  h5 {[%clk 0:00:22]} 38. Nc1 {[%clk 0:01:21]}  Bb4 {[%clk 0:00:20]} 39. Nd3 {[%clk 0:01:20]}  Bd6 {[%clk 0:00:20]} 40. Kd2 {[%clk 0:01:18]}  Ra7 {[%clk 0:00:20]} 41. Kc2 {[%clk 0:01:18]}  Ra8 {[%clk 0:00:21]} 42. Kb3 {[%clk 0:01:17]}  Ra7 {[%clk 0:00:21]} 43. Nb4 {[%clk 0:01:12]}  Bxb4 {[%clk 0:00:19]} 44. Kxb4 {[%clk 0:01:13]}  g4 {[%clk 0:00:18]} 45. h4 {[%clk 0:00:28]}  gxf3 {[%clk 0:00:17]} 46. gxf3 {[%clk 0:00:29]}  Ra8 {[%clk 0:00:17]} 47. Rf6 {[%clk 0:00:30]}  Rg8 {[%clk 0:00:17]} 48. Rxa6 {[%clk 0:00:30]}  Rg1 {[%clk 0:00:12]} 49. Kxb5 {[%clk 0:00:29]}  Rb1+ {[%clk 0:00:09]} 50. Kc4 {[%clk 0:00:29]}  Rc1+ {[%clk 0:00:10]} 51. Kd3 {[%clk 0:00:29]}  Rh1 {[%clk 0:00:10]} 52. Re6 {[%clk 0:00:29]}  Rxh4 {[%clk 0:00:11]} 53. Rxe5 {[%clk 0:00:27]}  Rh1 {[%clk 0:00:11]} 54. Ke3 {[%clk 0:00:26]}  h4 {[%clk 0:00:12]} 55. Rh5 {[%clk 0:00:26]}  h3 {[%clk 0:00:12]} 56. Kf4 {[%clk 0:00:26]}  Kc8 {[%clk 0:00:10]} 57. a6 {[%clk 0:00:25]}  Kb8 {[%clk 0:00:10]} 58. Rh7 {[%clk 0:00:25]}  h2 {[%clk 0:00:09]} 59. e5 {[%clk 0:00:23]}  Ka7 {[%clk 0:00:08]} 60. Rxc7+ {[%clk 0:00:22]}  Kxa6 {[%clk 0:00:08]} 61. Rh7 {[%clk 0:00:23]}  Kb6 {[%clk 0:00:09]} 62. d6 {[%clk 0:00:21]}  Kc6 {[%clk 0:00:08]} 63. d7 {[%clk 0:00:21]}  Kc7 {[%clk 0:00:09]} 64. e6 {[%clk 0:00:21]}  Re1 {[%clk 0:00:10]} 65. Rxh2 {[%clk 0:00:16]}  Rxe6 {[%clk 0:00:10]} 66. Rd2 {[%clk 0:00:17]}  Kd8 {[%clk 0:00:10]} 67. Kg5 {[%clk 0:00:17]}  Re1 {[%clk 0:00:06]} 68. f4 {[%clk 0:00:17]}  Rg1+ {[%clk 0:00:07]} 69. Kf6 {[%clk 0:00:17]}  Rf1 {[%clk 0:00:06]} 70. f5 {[%clk 0:00:17]}  Rg1 {[%clk 0:00:07]} 71. Kf7 {[%clk 0:00:17]}  Rf1 {[%clk 0:00:08]} 72. f6 {[%clk 0:00:18]}  Rg1 {[%clk 0:00:08]} 73. Kf8 {[%clk 0:00:17]}  Rf1 {[%clk 0:00:08]} 74. f7 {[%clk 0:00:17]}  Rg1 {[%clk 0:00:09]} 75. Rd5 {[%clk 0:00:14]}  Rg2 {[%clk 0:00:08]} 76. Ra5 {[%clk 0:00:07]}  Rf2 {[%clk 0:00:07]} 77. Ra8+ {[%clk 0:00:06]}  Kxd7 {[%clk 0:00:07]} 78. Ra7+ {[%clk 0:00:06]}  Ke6 {[%clk 0:00:07]} 79. Ra6+ {[%clk 0:00:07]}  Kd7 {[%clk 0:00:07]} 80. Ra4 {[%clk 0:00:06]}  Rg2 {[%clk 0:00:07]} 81. Rd4+ {[%clk 0:00:05]}  Kc7 {[%clk 0:00:07]} 82. Ke7 {[%clk 0:00:03]}  Re2+ {[%clk 0:00:08]} 83. Kf6 {[%clk 0:00:04]}  Rf2+ {[%clk 0:00:08]} 84. Kg6 {[%clk 0:00:04]}  Rg2+ {[%clk 0:00:09]} 85. Kf5 {[%clk 0:00:05]}  Rf2+ {[%clk 0:00:09]} 86. Rf4 {[%clk 0:00:05]}  Rxf4+ {[%clk 0:00:10]} 87. Kxf4 {[%clk 0:00:06]} 1-0


[Site "https://www.chess.com"]

[Event "Titled Tuesday Blitz July 05 Early 2022"]
[White "Sochacki, Christophe"]
[Black "Tari, Aryan"]
[WhiteFideId "662569"]
[BlackFideId "1510045"]
[WhiteElo "2516"]
[BlackElo "2612"]
[Result "0-1"]
[Round "03"]
[TimeControl "180+1"]
[Date "2022.07.05"]
[WhiteClock "0:00:13"]
[BlackClock "0:00:54"]

1. e4 {[%clk 0:03:00]}  c6 {[%clk 0:02:58]} 2. d4 {[%clk 0:02:55]}  d5 {[%clk 0:02:59]} 3. exd5 {[%clk 0:02:53]}  cxd5 {[%clk 0:03:00]} 4. Bd3 {[%clk 0:02:49]}  Nf6 {[%clk 0:02:57]} 5. c3 {[%clk 0:02:49]}  Bg4 {[%clk 0:02:57]} 6. Qb3 {[%clk 0:02:41]}  Qd7 {[%clk 0:02:57]} 7. h3 {[%clk 0:02:39]}  Bh5 {[%clk 0:02:51]} 8. Bf4 {[%clk 0:02:37]}  Nc6 {[%clk 0:02:51]} 9. Nd2 {[%clk 0:02:37]}  e6 {[%clk 0:02:50]} 10. Ngf3 {[%clk 0:02:36]}  Bd6 {[%clk 0:02:50]} 11. Ne5 {[%clk 0:02:22]}  Bxe5 {[%clk 0:02:50]} 12. Bxe5 {[%clk 0:02:09]}  Bg6 {[%clk 0:02:51]} 13. Be2 {[%clk 0:01:47]}  O-O {[%clk 0:02:40]} 14. Bxf6 {[%clk 0:01:47]}  gxf6 {[%clk 0:02:41]} 15. h4 {[%clk 0:01:45]}  e5 {[%clk 0:02:35]} 16. h5 {[%clk 0:01:43]}  Bf5 {[%clk 0:02:35]} 17. g4 {[%clk 0:01:29]}  Be6 {[%clk 0:02:28]} 18. O-O-O {[%clk 0:01:19]}  exd4 {[%clk 0:02:09]} 19. f4 {[%clk 0:01:16]}  dxc3 {[%clk 0:02:04]} 20. Qxc3 {[%clk 0:01:16]}  d4 {[%clk 0:02:03]} 21. Qa3 {[%clk 0:01:10]}  Bd5 {[%clk 0:01:46]} 22. Rhg1 {[%clk 0:01:08]}  a5 {[%clk 0:01:43]} 23. Kb1 {[%clk 0:01:03]}  Nb4 {[%clk 0:01:42]} 24. Bc4 {[%clk 0:00:57]}  Rfc8 {[%clk 0:01:37]} 25. Qb3 {[%clk 0:00:49]}  Rxc4 {[%clk 0:01:19]} 26. Nxc4 {[%clk 0:00:50]}  Be4+ {[%clk 0:01:19]} 27. Kc1 {[%clk 0:00:38]}  Bc2 {[%clk 0:01:16]} 28. Nb6 {[%clk 0:00:18]}  Qc6 {[%clk 0:01:08]} 29. Qc4 {[%clk 0:00:19]}  Qxb6 {[%clk 0:01:03]} 30. Rxd4 {[%clk 0:00:19]}  Nc6 {[%clk 0:00:56]} 31. g5 {[%clk 0:00:13]}  Qxd4 {[%clk 0:00:54]} 0-1


[Site "https://www.chess.com"]

[Event "Titled Tuesday Blitz July 05 Early 2022"]
[White "Vachier-Lagrave, Maxime"]
[Black "Wagner, Dennis"]
[WhiteFideId "623539"]
[BlackFideId "24650684"]
[WhiteElo "2784"]
[BlackElo "2355"]
[Result "1-0"]
[Round "03"]
[TimeControl "180+1"]
[Date "2022.07.05"]
[WhiteClock "0:00:42"]
[BlackClock "0:00:04"]

1. d4 {[%clk 0:03:00]}  Nf6 {[%clk 0:02:57]} 2. Nf3 {[%clk 0:03:00]}  d5 {[%clk 0:02:49]} 3. Bf4 {[%clk 0:02:56]}  Bf5 {[%clk 0:02:43]} 4. e3 {[%clk 0:02:53]}  e6 {[%clk 0:02:43]} 5. c3 {[%clk 0:02:49]}  Bd6 {[%clk 0:02:39]} 6. Nbd2 {[%clk 0:02:48]}  O-O {[%clk 0:02:35]} 7. Be2 {[%clk 0:02:45]}  Bxf4 {[%clk 0:02:25]} 8. exf4 {[%clk 0:02:45]}  Nbd7 {[%clk 0:02:25]} 9. Ne5 {[%clk 0:02:34]}  c5 {[%clk 0:02:20]} 10. Nb3 {[%clk 0:02:32]}  Qb6 {[%clk 0:02:06]} 11. Qc1 {[%clk 0:02:16]}  Rac8 {[%clk 0:02:01]} 12. O-O {[%clk 0:02:13]}  h6 {[%clk 0:01:57]} 13. Re1 {[%clk 0:02:11]}  Rfd8 {[%clk 0:01:44]} 14. Bf1 {[%clk 0:02:04]}  a5 {[%clk 0:01:20]} 15. dxc5 {[%clk 0:02:04]}  Nxc5 {[%clk 0:01:21]} 16. Nd4 {[%clk 0:02:04]}  Be4 {[%clk 0:01:13]} 17. Qd2 {[%clk 0:01:52]}  Nfd7 {[%clk 0:01:01]} 18. Nxd7 {[%clk 0:01:41]}  Rxd7 {[%clk 0:00:59]} 19. f3 {[%clk 0:01:40]}  Bg6 {[%clk 0:00:55]} 20. Kh1 {[%clk 0:01:41]}  Rdc7 {[%clk 0:00:50]} 21. Re3 {[%clk 0:01:29]}  Nd7 {[%clk 0:00:42]} 22. Bb5 {[%clk 0:01:25]}  Nf6 {[%clk 0:00:42]} 23. a4 {[%clk 0:01:25]}  Qd6 {[%clk 0:00:38]} 24. Re2 {[%clk 0:01:20]}  Nh5 {[%clk 0:00:35]} 25. g3 {[%clk 0:01:11]}  Nf6 {[%clk 0:00:32]} 26. Rae1 {[%clk 0:01:11]}  Kh7 {[%clk 0:00:27]} 27. g4 {[%clk 0:01:09]}  Nd7 {[%clk 0:00:21]} 28. Nxe6 {[%clk 0:00:43]}  fxe6 {[%clk 0:00:20]} 29. Rxe6 {[%clk 0:00:44]}  Qf8 {[%clk 0:00:20]} 30. Rxg6 {[%clk 0:00:43]}  Kxg6 {[%clk 0:00:13]} 31. Qd3+ {[%clk 0:00:43]}  Kf7 {[%clk 0:00:13]} 32. Qxd5+ {[%clk 0:00:44]}  Kg6 {[%clk 0:00:05]} 33. Bd3+ {[%clk 0:00:42]}  Kf6 {[%clk 0:00:06]} 34. g5+ {[%clk 0:00:41]}  hxg5 {[%clk 0:00:04]} 35. fxg5# {[%clk 0:00:42]} 1-0


[Site "https://www.chess.com"]

[Event "Titled Tuesday Blitz July 05 Early 2022"]
[White "Alinasab, Mobina"]
[Black "Svane, Rasmus"]
[WhiteFideId "12528897"]
[BlackFideId "4657101"]
[WhiteElo "2031"]
[BlackElo "2674"]
[Result "0-1"]
[Round "04"]
[TimeControl "180+1"]
[Date "2022.07.05"]
[WhiteClock "0:00:01"]
[BlackClock "0:00:06"]

1. e4 {[%clk 0:03:00]}  c6 {[%clk 0:02:58]} 2. d4 {[%clk 0:02:59]}  d5 {[%clk 0:02:59]} 3. e5 {[%clk 0:02:58]}  Bf5 {[%clk 0:02:59]} 4. Nc3 {[%clk 0:02:58]}  e6 {[%clk 0:02:58]} 5. g4 {[%clk 0:02:57]}  Bg6 {[%clk 0:02:58]} 6. Nge2 {[%clk 0:02:56]}  c5 {[%clk 0:02:58]} 7. h4 {[%clk 0:02:55]}  h5 {[%clk 0:02:59]} 8. Nf4 {[%clk 0:02:55]}  Bh7 {[%clk 0:02:58]} 9. g5 {[%clk 0:02:55]}  cxd4 {[%clk 0:02:11]} 10. Nb5 {[%clk 0:02:50]}  Nc6 {[%clk 0:02:04]} 11. Nxd4 {[%clk 0:02:29]}  Nxd4 {[%clk 0:01:33]} 12. Qxd4 {[%clk 0:02:30]}  Ne7 {[%clk 0:01:24]} 13. g6 {[%clk 0:01:10]}  Bxg6 {[%clk 0:01:13]} 14. Nxg6 {[%clk 0:01:08]}  fxg6 {[%clk 0:01:07]} 15. Bg5 {[%clk 0:01:07]}  Qb6 {[%clk 0:00:50]} 16. Qxb6 {[%clk 0:00:31]}  axb6 {[%clk 0:00:51]} 17. Be3 {[%clk 0:00:32]}  Nc6 {[%clk 0:00:33]} 18. Bb5 {[%clk 0:00:06]}  Bc5 {[%clk 0:00:33]} 19. Bf4 {[%clk 0:00:04]}  Kf7 {[%clk 0:00:33]} 20. c3 {[%clk 0:00:04]}  Ne7 {[%clk 0:00:20]} 21. Bd3 {[%clk 0:00:04]}  Nf5 {[%clk 0:00:20]} 22. Ke2 {[%clk 0:00:05]}  Be7 {[%clk 0:00:19]} 23. a4 {[%clk 0:00:03]}  Nxh4 {[%clk 0:00:18]} 24. Rag1 {[%clk 0:00:03]}  Nf5 {[%clk 0:00:17]} 25. b3 {[%clk 0:00:03]}  h4 {[%clk 0:00:15]} 26. Bd2 {[%clk 0:00:03]}  Rh5 {[%clk 0:00:14]} 27. Rh3 {[%clk 0:00:03]}  Rah8 {[%clk 0:00:08]} 28. f4 {[%clk 0:00:03]}  g5 {[%clk 0:00:06]} 29. fxg5 {[%clk 0:00:03]}  Kg6 {[%clk 0:00:06]} 30. Kf3 {[%clk 0:00:03]}  Bxg5 {[%clk 0:00:06]} 31. Be1 {[%clk 0:00:03]}  Kh6 {[%clk 0:00:06]} 32. Rg4 {[%clk 0:00:04]}  Be7 {[%clk 0:00:06]} 33. Bd2+ {[%clk 0:00:03]}  g5 {[%clk 0:00:06]} 34. b4 {[%clk 0:00:04]}  Kg6 {[%clk 0:00:06]} 35. Ke2 {[%clk 0:00:03]}  Kf7 {[%clk 0:00:06]} 36. a5 {[%clk 0:00:04]}  bxa5 {[%clk 0:00:06]} 37. bxa5 {[%clk 0:00:05]}  Ng3+ {[%clk 0:00:05]} 38. Kd1 {[%clk 0:00:05]}  Nf5 {[%clk 0:00:04]} 39. Kc2 {[%clk 0:00:05]}  Rg8 {[%clk 0:00:04]} 40. Be2 {[%clk 0:00:05]}  Rhh8 {[%clk 0:00:04]} 41. Bd3 {[%clk 0:00:04]}  Bd8 {[%clk 0:00:04]} 42. Be2 {[%clk 0:00:04]}  Kg6 {[%clk 0:00:03]} 43. Bd3 {[%clk 0:00:03]}  Kh5 {[%clk 0:00:03]} 44. Be2 {[%clk 0:00:04]}  Kh6 {[%clk 0:00:04]} 45. Bd3 {[%clk 0:00:03]}  Bc7 {[%clk 0:00:04]} 46. Bxf5 {[%clk 0:00:03]}  exf5 {[%clk 0:00:04]} 47. Rhxh4+ {[%clk 0:00:04]}  Kg6 {[%clk 0:00:04]} 48. Rxg5+ {[%clk 0:00:04]}  Kf7 {[%clk 0:00:05]} 49. Rxh8 {[%clk 0:00:04]}  Rxh8 {[%clk 0:00:05]} 50. Rxf5+ {[%clk 0:00:05]}  Ke6 {[%clk 0:00:06]} 51. Rg5 {[%clk 0:00:04]}  Bxe5 {[%clk 0:00:06]} 52. Rg6+ {[%clk 0:00:05]}  Kf5 {[%clk 0:00:06]} 53. Rb6 {[%clk 0:00:06]}  Rh2 {[%clk 0:00:06]} 54. Kd3 {[%clk 0:00:06]}  Rh3+ {[%clk 0:00:06]} 55. Kc2 {[%clk 0:00:06]}  Rh7 {[%clk 0:00:06]} 56. a6 {[%clk 0:00:06]}  bxa6 {[%clk 0:00:07]} 57. Rxa6 {[%clk 0:00:07]}  Rh2 {[%clk 0:00:05]} 58. Ra4 {[%clk 0:00:07]}  Rg2 {[%clk 0:00:03]} 59. Kd3 {[%clk 0:00:07]}  Rg3+ {[%clk 0:00:03]} 60. Kc2 {[%clk 0:00:08]}  Rf3 {[%clk 0:00:04]} 61. Rb4 {[%clk 0:00:07]}  Rf2 {[%clk 0:00:04]} 62. Kd3 {[%clk 0:00:07]}  Rg2 {[%clk 0:00:04]} 63. Ra4 {[%clk 0:00:06]}  Rg3+ {[%clk 0:00:04]} 64. Kc2 {[%clk 0:00:06]}  Bf6 {[%clk 0:00:04]} 65. Kd1 {[%clk 0:00:06]}  Rg2 {[%clk 0:00:04]} 66. Ke1 {[%clk 0:00:05]}  Bh4+ {[%clk 0:00:04]} 67. Kd1 {[%clk 0:00:05]}  Bf6 {[%clk 0:00:04]} 68. Rb4 {[%clk 0:00:05]}  Rh2 {[%clk 0:00:03]} 69. Ra4 {[%clk 0:00:05]}  Rh3 {[%clk 0:00:04]} 70. Kc2 {[%clk 0:00:05]}  Rf3 {[%clk 0:00:04]} 71. Rb4 {[%clk 0:00:05]}  Rf2 {[%clk 0:00:04]} 72. Kd1 {[%clk 0:00:05]}  Rh2 {[%clk 0:00:03]} 73. Ra4 {[%clk 0:00:04]}  Be5 {[%clk 0:00:03]} 74. Rb4 {[%clk 0:00:04]}  Ke6 {[%clk 0:00:04]} 75. Kc2 {[%clk 0:00:04]}  Kd6 {[%clk 0:00:04]} 76. Kd3 {[%clk 0:00:04]}  Rh3+ {[%clk 0:00:04]} 77. Kc2 {[%clk 0:00:05]}  Kc5 {[%clk 0:00:05]} 78. Ra4 {[%clk 0:00:05]}  Kb5 {[%clk 0:00:05]} 79. Rb4+ {[%clk 0:00:05]}  Kc5 {[%clk 0:00:05]} 80. Rg4 {[%clk 0:00:06]}  Rh2 {[%clk 0:00:05]} 81. Kd3 {[%clk 0:00:06]}  Rh3+ {[%clk 0:00:05]} 82. Kc2 {[%clk 0:00:05]}  Rf3 {[%clk 0:00:06]} 83. Rh4 {[%clk 0:00:04]}  Bf6 {[%clk 0:00:06]} 84. Rg4 {[%clk 0:00:04]}  Rf5 {[%clk 0:00:06]} 85. Ra4 {[%clk 0:00:04]}  Kd6 {[%clk 0:00:06]} 86. Ra6+ {[%clk 0:00:04]}  Ke5 {[%clk 0:00:06]} 87. Ra4 {[%clk 0:00:04]}  Rf2 {[%clk 0:00:05]} 88. Kd1 {[%clk 0:00:04]}  Rg2 {[%clk 0:00:04]} 89. Ke1 {[%clk 0:00:04]}  Bh4+ {[%clk 0:00:04]} 90. Kd1 {[%clk 0:00:04]}  Bf6 {[%clk 0:00:03]} 91. Kc2 {[%clk 0:00:04]}  Bg5 {[%clk 0:00:02]} 92. Rd4 {[%clk 0:00:05]}  Ke6 {[%clk 0:00:02]} 93. Kd1 {[%clk 0:00:05]}  Bxd2 {[%clk 0:00:02]} 94. Rxd2 {[%clk 0:00:05]}  Rg3 {[%clk 0:00:03]} 95. Kc2 {[%clk 0:00:04]}  Ke5 {[%clk 0:00:03]} 96. Re2+ {[%clk 0:00:05]}  Kd6 {[%clk 0:00:04]} 97. Rd2 {[%clk 0:00:04]}  Kc5 {[%clk 0:00:05]} 98. Rf2 {[%clk 0:00:05]}  Rg4 {[%clk 0:00:04]} 99. Re2 {[%clk 0:00:05]}  Kc4 {[%clk 0:00:05]} 100. Rf2 {[%clk 0:00:05]}  Rh4 {[%clk 0:00:05]} 101. Rg2 {[%clk 0:00:06]}  Rf4 {[%clk 0:00:05]} 102. Re2 {[%clk 0:00:06]}  Rf3 {[%clk 0:00:05]} 103. Kd2 {[%clk 0:00:05]}  Rd3+ {[%clk 0:00:06]} 104. Kc2 {[%clk 0:00:04]}  Rxc3+ {[%clk 0:00:06]} 105. Kd2 {[%clk 0:00:04]}  Ra3 {[%clk 0:00:07]} 106. Re8 {[%clk 0:00:04]}  Ra2+ {[%clk 0:00:07]} 107. Kd1 {[%clk 0:00:04]}  Kd3 {[%clk 0:00:07]} 108. Kc1 {[%clk 0:00:04]}  d4 {[%clk 0:00:08]} 109. Rh8 {[%clk 0:00:04]}  Ra1+ {[%clk 0:00:07]} 110. Kb2 {[%clk 0:00:04]}  Re1 {[%clk 0:00:08]} 111. Rh3+ {[%clk 0:00:03]}  Kd2 {[%clk 0:00:09]} 112. Rg3 {[%clk 0:00:02]}  d3 {[%clk 0:00:09]} 113. Rg2+ {[%clk 0:00:02]}  Re2 {[%clk 0:00:08]} 114. Rg8 {[%clk 0:00:03]}  Kd1+ {[%clk 0:00:07]} 115. Kc3 {[%clk 0:00:03]}  d2 {[%clk 0:00:06]} 116. Rd8 {[%clk 0:00:03]}  Kc1 {[%clk 0:00:06]} 117. Ra8 {[%clk 0:00:01]}  Re3+ {[%clk 0:00:06]} 0-1


[Site "https://www.chess.com"]

[Event "Titled Tuesday Blitz July 05 Early 2022"]
[White "Bagrationi, Alexander"]
[Black "Livaic, Leon"]
[WhiteFideId "14104954"]
[BlackFideId "14531534"]
[WhiteElo "2398"]
[BlackElo "2540"]
[Result "0-1"]
[Round "04"]
[TimeControl "180+1"]
[Date "2022.07.05"]
[WhiteClock "0:00:10"]
[BlackClock "0:00:28"]

1. e4 {[%clk 0:02:59]}  Nf6 {[%clk 0:02:59]} 2. e5 {[%clk 0:02:56]}  Nd5 {[%clk 0:02:59]} 3. d4 {[%clk 0:02:57]}  d6 {[%clk 0:02:59]} 4. Nf3 {[%clk 0:02:57]}  g6 {[%clk 0:02:59]} 5. Be2 {[%clk 0:02:51]}  Bg7 {[%clk 0:02:59]} 6. c4 {[%clk 0:02:47]}  Nb6 {[%clk 0:02:59]} 7. b3 {[%clk 0:02:47]}  Nc6 {[%clk 0:02:56]} 8. Bb2 {[%clk 0:02:47]}  dxe5 {[%clk 0:02:47]} 9. d5 {[%clk 0:02:39]}  Nd4 {[%clk 0:02:43]} 10. Nxd4 {[%clk 0:02:38]}  exd4 {[%clk 0:02:43]} 11. Bxd4 {[%clk 0:02:38]}  Bxd4 {[%clk 0:02:27]} 12. Qxd4 {[%clk 0:02:38]}  O-O {[%clk 0:02:28]} 13. Nc3 {[%clk 0:02:25]}  e6 {[%clk 0:02:19]} 14. O-O {[%clk 0:02:25]}  exd5 {[%clk 0:02:20]} 15. c5 {[%clk 0:02:25]}  Nd7 {[%clk 0:02:17]} 16. Nxd5 {[%clk 0:02:23]}  c6 {[%clk 0:02:16]} 17. Nf4 {[%clk 0:02:09]}  Qf6 {[%clk 0:02:14]} 18. Qxf6 {[%clk 0:02:06]}  Nxf6 {[%clk 0:02:15]} 19. Bc4 {[%clk 0:02:01]}  a5 {[%clk 0:02:13]} 20. Rfe1 {[%clk 0:02:00]}  g5 {[%clk 0:01:56]} 21. Nd3 {[%clk 0:01:55]}  Bf5 {[%clk 0:01:38]} 22. Re5 {[%clk 0:01:54]}  Bxd3 {[%clk 0:01:38]} 23. Bxd3 {[%clk 0:01:55]}  h6 {[%clk 0:01:38]} 24. Re7 {[%clk 0:01:38]}  Rad8 {[%clk 0:01:36]} 25. Bc4 {[%clk 0:01:35]}  Nd7 {[%clk 0:01:24]} 26. Rd1 {[%clk 0:01:07]}  Nxc5 {[%clk 0:01:24]} 27. Bxf7+ {[%clk 0:01:05]}  Kg7 {[%clk 0:01:15]} 28. Bc4+ {[%clk 0:00:57]}  Kf6 {[%clk 0:01:15]} 29. Rxd8 {[%clk 0:00:47]}  Rxd8 {[%clk 0:01:10]} 30. Rf7+ {[%clk 0:00:45]}  Kg6 {[%clk 0:01:10]} 31. f4 {[%clk 0:00:38]}  gxf4 {[%clk 0:00:54]} 32. Rxf4 {[%clk 0:00:37]}  b5 {[%clk 0:00:50]} 33. Bf1 {[%clk 0:00:35]}  Rd1 {[%clk 0:00:35]} 34. Rf2 {[%clk 0:00:29]}  Ne4 {[%clk 0:00:34]} 35. Rf4 {[%clk 0:00:17]}  Nd2 {[%clk 0:00:32]} 36. g3 {[%clk 0:00:18]}  Ra1 {[%clk 0:00:32]} 37. Kg2 {[%clk 0:00:16]}  Nxf1 {[%clk 0:00:32]} 38. Rxf1 {[%clk 0:00:16]}  Rxa2+ {[%clk 0:00:33]} 39. Kf3 {[%clk 0:00:16]}  Rb2 {[%clk 0:00:33]} 40. Rc1 {[%clk 0:00:16]}  Rxb3+ {[%clk 0:00:31]} 41. Kg2 {[%clk 0:00:17]}  a4 {[%clk 0:00:30]} 42. Rxc6+ {[%clk 0:00:17]}  Kf5 {[%clk 0:00:31]} 43. Rxh6 {[%clk 0:00:16]}  a3 {[%clk 0:00:30]} 44. Ra6 {[%clk 0:00:17]}  b4 {[%clk 0:00:29]} 45. h4 {[%clk 0:00:17]}  Kg4 {[%clk 0:00:24]} 46. Rg6+ {[%clk 0:00:15]}  Kh5 {[%clk 0:00:25]} 47. Rg5+ {[%clk 0:00:14]}  Kh6 {[%clk 0:00:25]} 48. Ra5 {[%clk 0:00:13]}  Rb2+ {[%clk 0:00:26]} 49. Kf3 {[%clk 0:00:14]}  a2 {[%clk 0:00:27]} 50. g4 {[%clk 0:00:11]}  Rb3+ {[%clk 0:00:27]} 51. Kf4 {[%clk 0:00:10]}  Ra3 {[%clk 0:00:28]} 0-1


[Site "https://www.chess.com"]

[Event "Titled Tuesday Blitz July 05 Early 2022"]
[White "Barp, Alberto"]
[Black "Jones, Gawain C B"]
[WhiteFideId "872555"]
[BlackFideId "409561"]
[WhiteElo "2229"]
[BlackElo "2657"]
[Result "0-1"]
[Round "04"]
[TimeControl "180+1"]
[Date "2022.07.05"]
[WhiteClock "0:00:09"]
[BlackClock "0:00:37"]

1. d4 {[%clk 0:03:00]}  Nf6 {[%clk 0:03:00]} 2. c4 {[%clk 0:02:59]}  g6 {[%clk 0:03:00]} 3. g3 {[%clk 0:02:58]}  Bg7 {[%clk 0:03:00]} 4. Bg2 {[%clk 0:02:58]}  c5 {[%clk 0:03:00]} 5. Nf3 {[%clk 0:02:57]}  O-O {[%clk 0:02:58]} 6. O-O {[%clk 0:02:57]}  d6 {[%clk 0:02:59]} 7. Nc3 {[%clk 0:02:57]}  Nc6 {[%clk 0:02:59]} 8. dxc5 {[%clk 0:02:54]}  dxc5 {[%clk 0:03:00]} 9. Bf4 {[%clk 0:02:54]}  Nh5 {[%clk 0:02:58]} 10. Be3 {[%clk 0:02:52]}  b6 {[%clk 0:02:58]} 11. Qc1 {[%clk 0:02:51]}  Bb7 {[%clk 0:02:52]} 12. Rd1 {[%clk 0:02:51]}  Qe8 {[%clk 0:02:52]} 13. Bh6 {[%clk 0:02:45]}  Bxh6 {[%clk 0:02:43]} 14. Qxh6 {[%clk 0:02:44]}  f6 {[%clk 0:02:43]} 15. Nd5 {[%clk 0:02:34]}  Rd8 {[%clk 0:02:36]} 16. b3 {[%clk 0:02:07]}  Ng7 {[%clk 0:02:34]} 17. e3 {[%clk 0:01:57]}  Nf5 {[%clk 0:02:21]} 18. Qf4 {[%clk 0:01:57]}  e6 {[%clk 0:02:10]} 19. Nc3 {[%clk 0:01:50]}  g5 {[%clk 0:02:07]} 20. Rxd8 {[%clk 0:01:24]}  Qxd8 {[%clk 0:01:56]} 21. Qe4 {[%clk 0:01:24]}  Qe7 {[%clk 0:01:49]} 22. Qc2 {[%clk 0:01:11]}  g4 {[%clk 0:01:49]} 23. Ne1 {[%clk 0:01:10]}  Ne5 {[%clk 0:01:48]} 24. Rd1 {[%clk 0:01:03]}  Bxg2 {[%clk 0:01:47]} 25. Kxg2 {[%clk 0:01:04]}  Rd8 {[%clk 0:01:39]} 26. Rxd8+ {[%clk 0:00:57]}  Qxd8 {[%clk 0:01:39]} 27. h3 {[%clk 0:00:48]}  h5 {[%clk 0:01:36]} 28. hxg4 {[%clk 0:00:48]}  hxg4 {[%clk 0:01:36]} 29. Ne2 {[%clk 0:00:44]}  Qa8+ {[%clk 0:01:32]} 30. Kg1 {[%clk 0:00:43]}  Kf7 {[%clk 0:01:13]} 31. Nf4 {[%clk 0:00:31]}  Qd8 {[%clk 0:00:57]} 32. Ned3 {[%clk 0:00:27]}  Nf3+ {[%clk 0:00:56]} 33. Kf1 {[%clk 0:00:27]}  Qh8 {[%clk 0:00:54]} 34. Qd1 {[%clk 0:00:20]}  Qh2 {[%clk 0:00:42]} 35. Ne1 {[%clk 0:00:16]}  Nxg3+ {[%clk 0:00:37]} 36. fxg3 {[%clk 0:00:13]}  Nd2+ {[%clk 0:00:36]} 37. Qxd2 {[%clk 0:00:09]}  Qxd2 {[%clk 0:00:37]} 0-1


[Site "https://www.chess.com"]